Cogmind - Beta 16 @@@ ROGUE MODE // 2025.10.30 @ 14:55:41 Player: ktur Result: Destroyed by IL-URR(R) with Subdweller Beam Cannon Performance ------------- Evolutions (0) 0 Regions Visited (2) 400 Robots Destroyed (25) 125 Value Destroyed (702) 702 Prototype IDs (3) 60 Alien Tech Used (0) 0 Bonus (0) 0 TOTAL SCORE: 1287 Bonus ------- None Cogmind --------- Core Integrity 0/250 Matter 136/300 Energy 34/100 System Corruption 0% Temperature Cool (9) Movement Treading (240) Ox1 Location -10/Subcaves Parts ------- > --- POWER (1) -------- (None) > --- PROPULSION (2) --- Light Treads > --- UTILITY (2) ------ Large Storage Unit > --- WEAPON (2) ------- Medium Laser Assault Rifle > --- INVENTORY (15) --- Meta Core Armored Wheel Flight Unit High-capacity Storage Unit Humpback Machine Analyzer Hacking Suite Subdweller Laser Subdweller Shrapnel Launcher Datajack Mining Laser Peak State ------------ > --- POWER ------------ Subdweller Power Source > --- PROPULSION ------- Light Treads Light Treads > --- UTILITY ---------- Large Storage Unit Seismic Detector > --- WEAPON ----------- Subdweller Machine Gun Light Cannon > --- INVENTORY -------- Meta Core Light Treads Armored Wheel Flight Unit High-capacity Storage Unit Humpback Machine Analyzer Hacking Suite Medium Laser Subdweller Laser Assault Rifle Subdweller Shrapnel Launcher Datajack Mining Laser [Rating: 12] Favorites ----------- Power Ion Engine Engine Ion Engine Propulsion Light Treads Treads Light Treads Utility Seismic Detector Device Seismic Detector Storage Large Storage Unit Weapon Light Cannon Energy Gun Medium Laser Ballistic Gun Subdweller Machine Gun Ballistic Cannon Light Cannon Launcher Grenade Launcher Special Weapon Mining Laser Build | -11 -10 -10 ------- Run | Yrd Mat Sub Slots Evolved . | . . . Power . | . . . Propulsion . | . . . Utility . | . . . Weapon . | . . . Parts Attached 23 | 7 10 6 Power 3 | 1 . 2 Engine 3 | 1 . 2 Core . | . . . Reactor . | . . . Propulsion 5 | 2 2 1 Treads 5 | 2 2 1 Leg . | . . . Wheel . | . . . Hover . | . . . Flight . | . . . Utility 4 | 2 2 . Device 1 | 1 . . Storage 3 | 1 2 . Processor . | . . . Hackware . | . . . Protection . | . . . Artifact . | . . . Weapon 11 | 2 6 3 Energy Gun 5 | 2 1 2 Energy Cannon . | . . . Ballistic Gun 2 | . 1 1 Ballistic Cannon 2 | . 2 . Launcher 1 | . 1 . Special Weapon 1 | . 1 . Impact Weapon . | . . . Slashing Weapon . | . . . Piercing Weapon . | . . . Special Melee Weapon . | . . . Unidentified Prototypes . | . . . Parts Lost 11 | . . 11 Power 2 | . . 2 Propulsion 4 | . . 4 Utility 1 | . . 1 Weapon 4 | . . 4 Highest Loss Streak 6 | . . 6 To Critical Strikes . | . . . Average Backups 12 | 3 11 14 Power . | . 1 . Propulsion 4 | 1 4 4 Utility 1 | . . 3 Weapon 5 | 1 5 5 Tool/Special . | . . . Unused Backups 13 | . 5 8 Power . | . . . Propulsion 6 | . 4 2 Utility 3 | . . 3 Weapon 2 | . 1 1 Tool/Special 2 | . . 2 Average Slot Usage (%) 97 | . 99 93 Engine 12 | . 14 9 Treads 27 | . 27 27 Device 13 | . 14 13 Storage 14 | . 14 14 Energy Gun 9 | . 14 . Ballistic Gun 1 | . . 4 Ballistic Cannon 13 | . 10 18 Launcher 1 | . 2 . Special Weapon 1 | . . 4 Peak Build Rating 12 | 7 9 12 Average Rating 8 | 4 7 9 On Entrance 5 | . 7 9 Avg Prop Armor Cover (%) . | . . . Naked Turns . | . . . Heaviest Build 51 | 14 51 33 Greatest Support 40 | 40 40 40 Greatest Overweight (x) 1 | . 1 . Average Overweight (x) . | . . . Largest Inventory Capacity 20 | 8 20 15 Average Capacity 14 | 7 15 15 Most Carried 15 | 7 15 15 Average Carried 12 | 3 11 14 Final Capacity 15 | 8 15 15 Final Carried 15 | 5 15 12 Class Distribution -------------------- 100% | Mutant Dominant Class ---------------- Mutant | -10/Materials Mutant | -10/Subcaves Resources | -11 -10 -10 ----------- Run | Yrd Mat Sub Matter Collected 677 | 251 208 218 Remotely . | . . . Salvage Created 715 | 52 485 178 Parts 42 | 5 20 17 Haulers Intercepted 2 | . 2 . Recyclers Shooed 1 | . 1 . Parts Field Recycled . | . . . Retrieved Matter . | . . . Parts Self-Destructed 7 | . . 7 Prevented . | . . . Parts Restored . | . . . Kills | -11 -10 -10 ------- Run | Yrd Mat Sub Combat Hostiles Destroyed 19 | . 12 7 Guns 6 | . 4 2 Cannons 10 | . 5 5 AOE 3 | . 3 . Classes Destroyed 7 | 1 5 1 Tunneler 2 | 2 . . Hauler 2 | . 2 . Mechanic 1 | . 1 . Operator 1 | . 1 . Swarmer 3 | . 3 . Grunt 9 | . 9 . Subdweller 7 | . . 7 Best Kill Streak 3 | 2 3 3 Combat Bots Only 3 | . 3 3 Max Kills in Single Turn 3 | 2 3 1 Gunslinging . | . . . Exploded 3 | . 3 . Melee . | . . . Uniques/NPCs Destroyed . | . . . Combat | -11 -10 -10 -------- Run | Yrd Mat Sub Hostile Shots Fired 108 | . 37 71 Missed 27 | . 9 18 Hits 81 | . 28 53 Projectile 81 | . 28 53 AOE 1 | . . 1 Critical Strikes 3 | . . 3 Damage Taken 1750 | . 351 1399 Core 270 | . 22 248 Absorbed by Shields . | . . . Regen/Repaired (Parts) 291 | . 291 . Core Remaining (%) 100 | 100 . . Volleys Fired 87 | 2 37 48 Largest 2 | 2 2 2 Hottest 100 | 90 100 100 Shots Fired 158 | 4 71 83 Gun 81 | 4 43 34 Cannon 64 | . 25 39 Launcher 2 | . 1 1 Special 11 | . 2 9 Kinetic 90 | . 26 64 Thermal 66 | 4 44 18 Explosive 2 | . 1 1 Electromagnetic . | . . . Robot Hit Streak 12 | 2 8 12 Robot Miss Streak 3 | 1 3 2 Penetration Max . | . . . Secondary Targets . | . . . Shots Hit Robots 102 | 3 45 54 Core Hits 39 | 2 26 11 Critical Kills . | . . . Critical Parts Destroyed . | . . . Critical Strikes 10 | . 6 4 Burn 5 | . 5 . Destroy 1 | . . 1 Blast 4 | . 1 3 Melee Attacks . | . . . Impact . | . . . Slashing . | . . . Piercing . | . . . Sneak Attacks . | . . . Combat Hostiles . | . . . Follow-up Attacks . | . . . Damage Inflicted 1901 | 47 853 1001 Guns 870 | 47 331 492 Cannons 741 | . 315 426 Explosions 271 | . 188 83 Melee . | . . . Ramming 19 | . 19 . Kinetic 1120 | . 315 805 Thermal 491 | 47 331 113 Explosive 271 | . 188 83 Electromagnetic . | . . . Impact . | . . . Slashing . | . . . Piercing . | . . . Highest Corruption . | . . . Average Corruption . | . . . Corruption Purged . | . . . Corruption Blocked . | . . . Overload Shots . | . . . Overflow Damage . | . . . Projectiles . | . . . Explosions . | . . . Melee . | . . . Knockbacks 13 | . 1 12 Impact . | . . . Kinetic 12 | . 1 11 Secondary 1 | . . 1 Self-Inflicted Damage 36 | . 11 25 Shots 2 | . 1 1 Rammed 6 | . 6 . Targets Rammed 6 | . 6 . Kicked . | . . . Crushed . | . . . Highest Temperature 314 | 60 207 314 Average Temperature 73 | 31 56 170 Received Heat Transfer 1187 | . 180 1007 Effects 1 | . . 1 Interference 1 | . . 1 Siege Activations . | . . . Martial Activations . | . . . Shielding Activations . | . . . Robots Disrupted . | . . . Combat Hostiles . | . . . Robots Corrupted . | . . . Combat Hostiles . | . . . Parts Fried . | . . . Impact Corruptions . | . . . Robots Melted . | . . . Combat Hostiles . | . . . Parts Melted 6 | . 5 1 Heat Transferred 1632 | 124 1334 174 Parts Sabotaged . | . . . Parts Stolen . | . . . Parts Stripped . | . . . Power Chain Reactions . | . . . Alert | -11 -10 -10 ------- Run | Yrd Mat Sub Maximum Alert Level . | . . . Low Security (%) 100 | 100 100 . Level 1 . | . . . Level 2 . | . . . Level 3 . | . . . Level 4 . | . . . Level 5 . | . . . High Security . | . . . Max Security . | . . . Peak Influence 91 | 10 91 . Initial . | . . . Average 18 | . 19 . Influence Increases 353 | 10 343 . Destroy 0b10 Robot/C 240 | . 240 . Destroy 0b10 Robot/NC 30 | 10 20 . Destroy Leader 54 | . 54 . Successful Hack 18 | . 18 . Destroy Structure 11 | . 11 . Influence Decreases 353 | 10 343 . Time Decay 353 | 10 343 . Squads Dispatched 2 | . 2 . Investigation 1 | . 1 . Extermination . | . . . Reinforcement 1 | . 1 . Assault . | . . . Garrison . | . . . Intercept . | . . . Searches Triggered . | . . . Construction Impeded . | . . . Haulers Reinforced . | . . . Active Scanning Responses . | . . . Cargo Convoy Interrupts . | . . . Stealth | -11 -10 -10 --------- Run | Yrd Mat Sub Distress Signals 2 | . 2 . Communications Jammed . | . . . Distress Signals . | . . . Times Spotted 34 | . 24 10 Peak Tracking Total 4 | . 4 3 Tactical Retreats . | . . . Traps | -11 -10 -10 ------- Run | Yrd Mat Sub Traps Triggered 1 | . 1 . Indirectly . | . . . Trap Hack Attempts . | . . . Triggered . | . . . Disarmed . | . . . Reprogrammed . | . . . Reused . | . . . Traps Extracted . | . . . Installed . | . . . Triggered . | . . . Machines | -11 -10 -10 ---------- Run | Yrd Mat Sub Machines Disabled . | . . . Max in Single Turn . | . . . Machines Repaired . | . . . Machines Dismantled . | . . . Machines Sabotaged . | . . . Overloaded Fab Kills . | . . . Hacking | -11 -10 -10 --------- Run | Yrd Mat Sub Machines Accessed 6 | . 6 . Terminals 5 | . 5 . Fabricators . | . . . Repair Stations 1 | . 1 . Recycling Units . | . . . Scanalyzers . | . . . Garrison Access . | . . . Total Hacks 28 | . 28 . Successful 12 | . 12 . Failed 16 | . 16 . Catastrophic . | . . . Database Lockouts . | . . . Manual 9 | . 9 . Terminals 18 | . 18 . Fabricators . | . . . Repair Stations 10 | . 10 . Recycling Units . | . . . Scanalyzers . | . . . Garrison Access . | . . . Terminal Hacks 6 | . 6 . Part Schematic 1 | . 1 . Robot Analysis 1 | . 1 . Prototype ID Bank 2 | . 2 . Locate Traps 1 | . 1 . Zone Layout 1 | . 1 . Fabricator Hacks . | . . . Repair Station Hacks 6 | . 6 . Scan Component 3 | . 3 . Repair 3 | . 3 . Recycling Unit Hacks . | . . . Scanalyzer . | . . . Garrison Access Hacks . | . . . Unauthorized Hacks . | . . . Terminals . | . . . Fabricators . | . . . Repair Stations . | . . . Recycling Units . | . . . Scanalyzers . | . . . Garrison Access . | . . . Data Cores Recovered 1 | . 1 . Used 1 | . 1 . Hacking Detections 6 | . 6 . Full Trace Events 1 | . 1 . Feedback Events . | . . . Feedback Blocked . | . . . Robot Schematics Acquired . | . . . Robots Built . | . . . Authchips . | . . . Time . | . . . Total Robot Build Rating . | . . . Part Schematics Acquired 1 | . 1 . Parts Built . | . . . Authchips . | . . . Time . | . . . Total Part Build Rating . | . . . Part Studies Acquired . | . . . Parts Repaired 3 | . 3 . Time 78 | . 78 . Parts Recycled . | . . . Recycled Matter . | . . . Retrieved Matter . | . . . Retrieved Components . | . . . Parts Scanalyzed . | . . . Part Schematics Acquired . | . . . Parts Damaged . | . . . Bothacking | -11 -10 -10 ------------ Run | Yrd Mat Sub Used RIF Installer . | . . . Robots Hacked . | . . . Non-combat . | . . . Combat . | . . . Robot Hacks Applied . | . . . Relay Couplers Released . | . . . Fabnet Peak Effective % . | . . . Robots Rewired . | . . . Allies Hacked . | . . . Hacks Repelled . | . . . Allies | -11 -10 -10 -------- Run | Yrd Mat Sub Total Allies . | . . . Largest Group . | . . . Highest-Rated Group . | . . . Highest-Rated Ally . | . . . Total Orders . | . . . Ally Attacks . | . . . Total Damage . | . . . Kills . | . . . Allies Corrupted . | . . . Allies Melted . | . . . Intel | -11 -10 -10 ------- Run | Yrd Mat Sub Active Infowar (turns) 2530 | 15 1680 835 Seismic 2530 | 15 1680 835 Robot Analysis Total 1 | . 1 . Derelict Logs Recovered . | . . . Drone Launches . | . . . Drone Recoveries . | . . . Exploration | -11 -10 -10 ------------- Run | Yrd Mat Sub Turns Passed 2628 | 80 1680 868 Spaces Moved 1134 | 39 672 423 Core 4 | 4 . . Treads 1130 | 35 672 423 Legs . | . . . Wheels . | . . . Hover . | . . . Flight . | . . . Fastest Speed 50 | 50 160 160 Average Speed 175 | 148 186 160 Slowest Speed 240 | 160 240 160 Overloaded Moves . | . . . Propulsion Burnouts . | . . . Robots Hopped . | . . . Potential Cave-ins . | . . . Cave-ins Triggered . | . . . Exploration Rate (%) 42 | 5 92 31 Regions Visited 2 Branch Regions 1 Pre-discovered Areas . | . . . Known Exits Taken . | . . . Unknown Exits Taken 2 | 1 1 . Scrap Searched . | . . . Spaces Dug 2 | . 2 . Terrain Destroyed 15 | . 9 6 Melee . | . . . Projectile 2 | . 2 . AOE 13 | . 7 6 Terrain Rammed . | . . . Walls Destroyed . | . . . Machines Disabled . | . . . Actions | -11 -10 -10 --------- Run | Yrd Mat Sub Total 1584 | 55 1017 512 Wait 281 | . 261 20 Move 1132 | 38 671 423 Hop . | . . . Pick Up 26 | 8 14 4 Fast Attach 12 | 4 6 2 Attach 11 | 3 . 8 Detach 4 | . 3 1 Swap 15 | . 11 4 Drop 10 | . 8 2 Fire 87 | 2 37 48 Melee . | . . . Ram . | . . . Kick . | . . . Crush 6 | . 6 . Escape Stasis . | . . . Rewire . | . . . Trap . | . . . Miscellaneous . | . . . Route ------- -11/Scrapyard -10/Materials (discovered 5 exits: [*Mat x3] / [*Min] / [*Sub]) -10/Subcaves History --------- Turn | Location | Event 36 | -11/Scrapyard | Discovered new exit (range 15) 81 | -11/Scrapyard | Entered Materials 288 | -10/Materials | Discovered new exit (range 8) 317 | -10/Materials | Build established: Mutant 680 | -10/Materials | Discovered new exit (range 9) 932 | -10/Materials | Discovered new exit (range 12) 1393 | -10/Materials | Discovered new exit (range 14) 1494 | -10/Materials | Repaired Lgt. Treads 1522 | -10/Materials | Repaired Lgt. Treads 1549 | -10/Materials | Repaired Lgt. Cannon 1755 | -10/Materials | Discovered new exit (range 5) 1761 | -10/Materials | Entered Subcaves 1762 | -10/Subcaves | Approached by a straggling Scientist 1951 | -10/Subcaves | Shifting Twisted Machinery released Sub. Shrapnel Launcher 2034 | -10/Subcaves | Shifting Twisted Machinery released Sub. Machine Gun 2047 | -10/Subcaves | Shifting Twisted Machinery released Sub. Monowheel 2173 | -10/Subcaves | A Subdweller sparked back to life 2173 | -10/Subcaves | A Subdweller sparked back to life 2173 | -10/Subcaves | A Subdweller sparked back to life 2226 | -10/Subcaves | Found Prototype Power Core 2242 | -10/Subcaves | Lost 5 parts (1p2n2w) 2281 | -10/Subcaves | Shifting Twisted Machinery released Flamer 2352 | -10/Subcaves | Shifting Twisted Machinery released Sub. Monowheel 2594 | -10/Subcaves | Core integrity fell below 50% 2611 | -10/Subcaves | Core integrity fell below 20% 2629 | -10/Subcaves | Destroyed by IL-URR(R) with Subdweller Beam Cannon Last Messages --------------- 02245_ The unstable cave ceiling collapses. 02245_ Scrap Shield Fragment crushed. Flamer falls loose from the Twisted Machinery. Sub. Monowheel falls loose from the Twisted Machinery. 02454_ Acquired Sub. Power Source. 02507_ V7-2IG(O) collects matter. 02589_ Critical hit (Meltdown: +300). 02592_ Lgt. Cannon destroyed. 02594_ Sub. Power Source destroyed. 02596_ Seismic Detector destroyed. 02598_ Y0-WPX(R) suffers critical hit (Destroy). 02607_ Critical hit (Meltdown: +290). 02609_ Lgt. Treads destroyed. 02610_ Sub. Optics melted. 02610_ Y0-WPX(R) destroyed. 02611_ Sub. Machine Gun destroyed. 02614_ Overheating: System interference. 02614_ Sub. Laser temporarily disabled. 02617_ Lgt. Treads destroyed. 02624_ IL-URR(R) affixes Scrap Shield Fragment to Scrap Shield. Map ----- +----------------------------------------------------+ | ?????????????????????????????????????????????????? | | ?????????????????????????????????????????????????? | | ?????????????????????????????????????????????????? | | ?????????????????????????????????????????????????? | | ?????????????????????????????????????????????????? | | ?????????????????????????????????????????????????? | | ?????????????????????????????????????????????????? | | ?????????????????????????????????????????????????? | | ?????????????????????????????????????????????????? | | ?????????????????????????????????????????????????? | | ?????????????????????????????????????????????????? | | ?????????????????????????????????????????????????? | | ?????????????????????????????????????????????????? | | ?????????????????????????????????????????????????? | | ?????????????????????????????????????????????????? | | ??????????????????????? ########?????????????????? | | ?????????????????????? ""# # ##????????????????? | | ??????????????????????? " #????????????????? | | ???????????????????????? "" ?????????????????? | | ?????????????????????????#" #?????????????????? | | ????????????????????????##" #####??????###????? | | ????????????????????????# *" ##????## ###??? | | ???????????????????????## % #???## #??? | | ???????????????????????#; R ##### ###??? | | ???????????????????????#; ## ## ##????? | | ???????????????????????#$@ ## ## #?????? | | ???????????????????????# ### #?????? | | ???????????????????????# ### #?????? | | ???????????????????????# ####?##### ##????? | | ???????????????????????## ##????????# ##???? | | ????????????????????????; #;##??????## ##??? | | ????????????????????????# ### ##???## #??? | | ????????????????????????# ### ##?## %#??? | | ????????????????????????# ;## #?# ##??? | | ????????????????????????##;### ##?# #???? | | ??????????????????????????### #### #???? | | ???????????????????????????# ## ##???? | | ???????????????????????????### #????? | | ?????????????????????????????## ##???? | | ??????????????????????????????# ##??? | | ??????????????????????????????## #??? | | ???????????????????????????????## ## ## ##??? | | ???????????????????????????????## ####### #???? | | ???????????????????????????????# ###### #???? | | ???????????????????????????????# # #???? | | ???????????????????????????????## ##???? | | ???????????????????????????????# # ## #????? | | ??????????????????????????????## ###### #???? | | ????????????????????????????### #????# ##???? | | ???????????????????????????## #????# ##????? | +----------------------------------------------------+ Best States ------------- Heat Dissipation 25 Energy Generation 10 Energy Capacity 250 Matter Stores 300 Matter Capacity 300 Sight Range 16 Terrain Scan Density 10 Evasion (%) 40 Recoil Reduction 2 Item Schematics ----------------- Transport Network Coupler | -10/Materials | Hacked Robot Schematics ------------------ None Fabricated ------------ Nothing Repaired ---------- Lgt. Treads | 31% | -10/Materials Lgt. Treads | 35% | -10/Materials Lgt. Cannon | 12% | -10/Materials Studied --------- None Alien Tech Used ----------------- None Achievements -------------- Bumper Bots Challenges ------------ None Game ------ Seed SubdwellerAlertBarrier Manual? 0 Play Time 00:16:00 Cumulative 820.0 hours Start 2025.10.30 @ 14:43:47 End 2025.10.30 @ 14:55:41 Sessions 1 Manual Loads 0 Difficulty Rogue Special Mode None Game No. 821 Rogue 821 Adventurer 0 Explorer 0 Win Type - Total 39 Types 14/4/11/2/0/0/5/2/1/0 Lore% 96 Gallery% 86 Achievement% 58 Wizard Run 0 Options --------- Layout 0 ASCII 0 Keyboard 0 Movement Numpad Keybinds 0 Fullscreen 1 Font 18/Smallcaps Map View 76x50 Zoom Use 0% Tactical HUD 1 Map Filters NONE Filters NONE Steam 1 RUN: 28d7fae4-3959-4aaf-90c6-2cca2da39657